Cogmind - Beta 10.2 @@@ ROGUE MODE // 2022.01.10 @ 18:02:46 Player: slowdive Result: Destroyed by Y-45 Defender with Heavy Assault Rifle Performance ------------- Evolutions (1) 500 Regions Visited (2) 400 Robots Destroyed (26) 130 Value Destroyed (579) 579 Prototype IDs (1) 20 Alien Tech Used (0) 0 Bonus (0) 0 TOTAL SCORE: 1629 Bonus ------- None Cogmind --------- Core Integrity 0/400 Matter 41/300 Energy 100/100 System Corruption 0% Temperature Cool (9) Movement Treading (220) Ox3 Location -9/Materials Parts ------- > --- POWER (1) -------- (None) > --- PROPULSION (3) --- Light Treads > --- UTILITY (3) ------ Medium Storage Unit High-capacity Storage Unit High-capacity Storage Unit > --- WEAPON (2) ------- Improved Assault Rifle Light Cannon > --- INVENTORY (24) --- Aluminum Leg Medium Storage Unit Medium Storage Unit Improved Signal Interpreter Targeting Computer Light Armor Plating Medium Armor Plating Medium Laser Small Laser Particle Gun Heavy Assault Rifle Improved Assault Rifle Light Cannon Light Cannon Light Cannon Grenade Launcher Heavy Hammer Heavy Hammer Heavy Hammer Peak State ------------ > --- POWER ------------ Ion Engine > --- PROPULSION ------- Light Treads Light Treads Light Treads > --- UTILITY ---------- Medium Storage Unit High-capacity Storage Unit High-capacity Storage Unit > --- WEAPON ----------- Light Cannon Light Cannon > --- INVENTORY -------- Aluminum Leg Medium Storage Unit Medium Storage Unit Improved Signal Interpreter Targeting Computer Light Armor Plating Medium Armor Plating Medium Laser Small Laser Particle Gun Heavy Assault Rifle Light Cannon Light Cannon Light Cannon Grenade Launcher Hammer Hammer Heavy Hammer [Rating: 11] Favorites ----------- Power Ion Engine Engine Ion Engine Propulsion Light Treads Treads Light Treads Leg Aluminum Leg Utility Medium Storage Unit Storage Medium Storage Unit Processor Targeting Computer Weapon Light Cannon Energy Gun Medium Laser Ballistic Gun Improved Assault Rifle Ballistic Cannon Light Cannon Launcher Grenade Launcher Impact Weapon Hammer Build | -11 -10 -9 ------- Run | Scr Mat Mat Slots Evolved 2 | . . 2 Power . | . . . Propulsion 1 | . . 1 Utility 1 | . . 1 Weapon . | . . . Parts Attached 42 | . 9 33 Power 3 | . . 3 Engine 3 | . . 3 Core . | . . . Reactor . | . . . Propulsion 9 | . . 9 Treads 7 | . . 7 Leg 2 | . . 2 Wheel . | . . . Hover . | . . . Flight . | . . . Utility 7 | . 3 4 Device . | . . . Storage 6 | . 2 4 Processor 1 | . 1 . Hackware . | . . . Protection . | . . . Artifact . | . . . Weapon 23 | . 6 17 Energy Gun . | . . . Energy Cannon . | . . . Ballistic Gun 1 | . . 1 Ballistic Cannon 10 | . 2 8 Launcher 3 | . 2 1 Special Weapon . | . . . Impact Weapon 9 | . 2 7 Slashing Weapon . | . . . Piercing Weapon . | . . . Special Melee Weapon . | . . . Unidentified Prototypes 1 | . . 1 Parts Lost 14 | . . 14 Power 3 | . . 3 Propulsion 8 | . . 8 Utility . | . . . Weapon 3 | . . 3 Highest Loss Streak 6 | . . 6 Average Slot Usage (%) 88 | . 88 88 Engine 10 | . 14 8 Treads 14 | . . 24 Leg 12 | . 28 1 Storage 27 | . 19 32 Processor 1 | . 4 . Energy Gun 1 | . 3 . Ballistic Cannon 11 | . 10 11 Impact Weapon 7 | . 6 8 Naked Turns . | . . . Heaviest Build 83 | 12 27 83 Greatest Support 60 | 20 20 60 Greatest Overweight (x) 26 | . 1 26 Average Overweight (x) . | . . 1 Largest Inventory Capacity 24 | 6 12 24 Average Capacity 16 | 6 8 21 Most Carried 20 | 6 12 20 Average Carried 12 | 6 8 14 Final Capacity 24 | 6 12 24 Final Carried 19 | 6 12 19 Class Distribution -------------------- 58% | Mutant 41% | Hauler-Mutant Dominant Class ---------------- Mutant | -10/Materials Hauler-Mutant | -9/Materials Resources | -11 -10 -9 ----------- Run | Scr Mat Mat Matter Collected 675 | 200 123 352 Remotely . | . . . Salvage Created 669 | . 86 583 Parts 47 | . 15 32 Haulers Intercepted 3 | . . 3 Recyclers Shooed 2 | . 1 1 Parts Field Recycled . | . . . Retrieved Matter . | . . . Parts Self-Destructed . | . . . Prevented . | . . . Kills | -11 -10 -9 ------- Run | Scr Mat Mat Combat Hostiles Destroyed 16 | . 6 10 Melee 2 | . . 2 Cannons 4 | . . 4 AOE 7 | . 6 1 Classes Destroyed 9 | . 3 6 Worker 3 | . . 3 Builder 1 | . . 1 Hauler 3 | . . 3 Recycler 1 | . . 1 Watcher 2 | . 1 1 Swarmer 3 | . 3 . Grunt 10 | . 3 7 Duelist 1 | . . 1 Sentry 2 | . . 2 Best Kill Streak 9 | . 5 9 Combat Bots Only 4 | . 4 2 Max Kills in Single Turn 5 | . 1 5 Gunslinging . | . . . Exploded 1 | . 1 1 Melee 1 | . . 1 Uniques/NPCs Destroyed . | . . . Combat | -11 -10 -9 -------- Run | Scr Mat Mat Damage Taken 2291 | . 176 2115 Core 461 | . 53 408 Absorbed by Shields . | . . . Core Remaining (%) 89 | 100 78 . Volleys Fired 44 | . 18 26 Largest 2 | . 2 2 Hottest 70 | . 70 70 Shots Fired 75 | . 24 51 Gun . | . . . Cannon 62 | . 12 50 Launcher 13 | . 12 1 Special . | . . . Kinetic 62 | . 12 50 Thermal . | . . . Explosive 13 | . 12 1 Electromagnetic . | . . . Robot Hit Streak 6 | . 3 6 Robot Miss Streak 3 | . 3 3 Penetration Max . | . . . Secondary Targets . | . . . Shots Hit Robots 95 | . 6 89 Core Hits 33 | . 11 22 Critical Hits 2 | . . 2 Critical Kills . | . . . Critical Parts Destroyed 2 | . . 2 Melee Attacks 85 | . 5 80 Impact 85 | . 5 80 Slashing . | . . . Piercing . | . . . Sneak Attacks . | . . . Combat Hostiles . | . . . Follow-up Attacks 4 | . . 4 Damage Inflicted 2196 | . 510 1686 Guns . | . . . Cannons 620 | . 86 534 Explosions 645 | . 424 221 Melee 926 | . . 926 Ramming 5 | . . 5 Kinetic 620 | . 86 534 Thermal . | . . . Explosive 645 | . 424 221 Electromagnetic . | . . . Impact 926 | . . 926 Slashing . | . . . Piercing . | . . . Highest Corruption 3 | . 3 . Average Corruption 2 | . 2 . Corruption Purged . | . . . Effects 4 | . 4 . Message Errors 2 | . 2 . Matter Fused 1 | . 1 . Targeting Errors 1 | . 1 . Overload Shots . | . . . Overflow Damage 30 | . . 30 Projectiles . | . . . Explosions . | . . . Melee 30 | . . 30 Knockbacks 7 | . 1 6 Impact 6 | . . 6 Kinetic 1 | . 1 . Secondary . | . . . Self-Inflicted Damage 67 | . 67 . Shots 2 | . 2 . Rammed 1 | . . 1 Targets Rammed 1 | . . 1 Kicked . | . . . Crushed . | . . . Highest Temperature 45 | . 27 45 Average Temperature 15 | . 10 19 Received Heat Transfer 801 | . 30 771 Siege Activations . | . . . Robots Corrupted . | . . . Combat Hostiles . | . . . Parts Fried 3 | . . 3 Impact Corruptions 4 | . . 4 Robots Melted . | . . . Combat Hostiles . | . . . Parts Melted . | . . . Heat Transferred . | . . . Parts Sabotaged . | . . . Parts Stolen . | . . . Parts Stripped . | . . . Power Chain Reactions . | . . . Missiles Intercepted . | . . . Alert | -11 -10 -9 ------- Run | Scr Mat Mat Peak Influence 244 | . 198 244 Initial 5 | . . 5 Average 49 | . 38 56 Maximum Alert Level 1 | . . 1 Low Security (%) 99 | 100 100 98 Level 1 . | . . 1 Level 2 . | . . . Level 3 . | . . . Level 4 . | . . . Level 5 . | . . . High Security . | . . . Max Security . | . . . Squads Dispatched 2 | . 2 . Investigation 1 | . 1 . Extermination . | . . . Reinforcement 1 | . 1 . Assault . | . . . Garrison . | . . . Intercept . | . . . Construction Impeded . | . . . Haulers Reinforced . | . . . Stealth | -11 -10 -9 --------- Run | Scr Mat Mat Distress Signals 7 | . 3 4 Communications Jammed . | . . . Distress Signals . | . . . Times Spotted 35 | . 13 22 Peak Tracking Total 5 | . 3 5 Tactical Retreats 7 | . . 7 Traps | -11 -10 -9 ------- Run | Scr Mat Mat Traps Triggered 2 | . 2 . Indirectly . | . . . Trap Hack Attempts . | . . . Triggered . | . . . Disarmed . | . . . Reprogrammed . | . . . Reused . | . . . Traps Extracted . | . . . Installed . | . . . Triggered 1 | . . 1 Machines | -11 -10 -9 ---------- Run | Scr Mat Mat Machines Disabled 2 | . 2 . Max in Single Turn 1 | . 1 . Machines Sabotaged . | . . . Garrisons Compromised . | . . . Overloaded Fab Kills . | . . . Fab Network Shutdowns . | . . . Hacking | -11 -10 -9 --------- Run | Scr Mat Mat Machines Accessed 6 | . 4 2 Terminals 6 | . 4 2 Fabricators . | . . . Repair Stations . | . . . Recycling Units . | . . . Scanalyzers . | . . . Garrison Access . | . . . Total Hacks 14 | . 9 5 Successful 5 | . 4 1 Failed 9 | . 5 4 Catastrophic 2 | . 1 1 Database Lockouts . | . . . Manual 10 | . 6 4 Terminals 14 | . 9 5 Fabricators . | . . . Repair Stations . | . . . Recycling Units . | . . . Scanalyzers . | . . . Garrison Access . | . . . Terminal Hacks 5 | . 4 1 Level Access Points 1 | . 1 . Alert Level 1 | . . 1 Locate Traps 1 | . 1 . Registered Components 1 | . 1 . Zone Layout 1 | . 1 . Fabricator Hacks . | . . . Repair Station Hacks . | . . . Recycling Unit Hacks . | . . . Scanalyzer . | . . . Garrison Access Hacks . | . . . Unauthorized Hacks . | . . . Terminals . | . . . Fabricators . | . . . Repair Stations . | . . . Recycling Units . | . . . Scanalyzers . | . . . Garrison Access . | . . . Data Cores Recovered . | . . . Used . | . . . Hacking Detections 4 | . 2 2 Full Trace Events 2 | . 1 1 Feedback Events . | . . . Feedback Blocked . | . . . Robot Schematics Acquired . | . . . Robots Built . | . . . Matter . | . . . Time . | . . . Total Robot Build Rating . | . . . Part Schematics Acquired . | . . . Parts Built . | . . . Matter . | . . . Time . | . . . Total Part Build Rating . | . . . Parts Repaired . | . . . Time . | . . . Parts Recycled . | . . . Recycled Matter . | . . . Retrieved Matter . | . . . Retrieved Components . | . . . Parts Scanalyzed . | . . . Part Schematics Acquired . | . . . Parts Damaged . | . . . Bothacking | -11 -10 -9 ------------ Run | Scr Mat Mat Used RIF Installer . | . . . Robots Hacked . | . . . Non-combat . | . . . Combat . | . . . Robot Hacks Applied . | . . . Relay Couplers Released . | . . . Robots Rewired . | . . . Allies Hacked . | . . . Hacks Repelled . | . . . Allies | -11 -10 -9 -------- Run | Scr Mat Mat Total Allies . | . . . Largest Group . | . . . Highest-Rated Group . | . . . Highest-Rated Ally . | . . . Total Orders . | . . . Ally Attacks . | . . . Total Damage . | . . . Kills . | . . . Allies Corrupted . | . . . Allies Melted . | . . . Intel | -11 -10 -9 ------- Run | Scr Mat Mat Robot Analysis Total . | . . . Derelict Logs Recovered . | . . . Drone Launches . | . . . Drone Recoveries . | . . . Exploration | -11 -10 -9 ------------- Run | Scr Mat Mat Turns Passed 1725 | 2 704 1019 Spaces Moved 790 | 2 430 358 Core 2 | . . 2 Treads 347 | . . 347 Legs 441 | 2 430 9 Wheels . | . . . Hover . | . . . Flight . | . . . Fastest Speed 120 | 120 120 160 Average Speed 155 | 120 131 185 Slowest Speed 1350 | 120 150 1350 Overloaded Moves . | . . . Propulsion Burnouts . | . . . Robots Hopped . | . . . Cave-ins Triggered . | . . . Exploration Rate (%) 28 | 2 63 19 Regions Visited 2 Branch Regions . Pre-discovered Areas . | . . . Known Exits Taken 1 | . 1 . Unknown Exits Taken 1 | 1 . . Scrap Searched . | . . . Spaces Dug 16 | . 11 5 Terrain Destroyed 79 | . 69 10 Melee 9 | . 4 5 Projectile . | . . . AOE 70 | . 65 5 Terrain Rammed . | . . . Walls Destroyed . | . . . Machines Disabled . | . . . Actions | -11 -10 -9 --------- Run | Scr Mat Mat Total 1080 | 1 536 543 Wait 83 | . 59 24 Move 788 | 1 429 358 Hop . | . . . Pick Up 24 | . 8 16 Fast Attach 13 | . 5 8 Attach 12 | . 1 11 Detach 7 | . 2 5 Swap 17 | . 3 14 Drop 11 | . 6 5 Fire 44 | . 18 26 Melee 80 | . 5 75 Ram . | . . . Kick . | . . . Crush 1 | . . 1 Escape Stasis . | . . . Rewire . | . . . Trap . | . . . Miscellaneous . | . . . Route ------- -11/Scrapyard -10/Materials (discovered 5 exits: *Mat x3 / [*Min x2]) -9/Materials (discovered 1 exit: [*Mat]) History --------- Turn | Location | Event 1 | -11/Scrapyard | Discovered new exit (range 1) 3 | -11/Scrapyard | Entered Materials 138 | -10/Materials | Discovered new exit (range 7) 289 | -10/Materials | Identified exit to Materials 300 | -10/Materials | Build established: Mutant 369 | -10/Materials | Discovered new exit (range 6) 707 | -10/Materials | Entered another Materials area 707 | -9/Materials | Evolved 2 slots: Propulsion x1, Utility x1 1305 | -9/Materials | Lost 3 parts (1p2n) 1318 | -9/Materials | Build established: Hauler-Mutant 1331 | -9/Materials | Core integrity fell below 50% 1391 | -9/Materials | Lost 4 parts (1p3n) 1548 | -9/Materials | Core integrity fell below 20% 1584 | -9/Materials | Lost 6 parts (1p2n3w) 1719 | -9/Materials | Discovered new exit (range 15) 1726 | -9/Materials | Destroyed by Y-45 Defender with Heavy Assault Rifle Last Messages --------------- 01627_ A-02 Transporter suffers critical hit. 01627_ Destroyed Lgt. Treads. 01627_ A-02 Transporter destroyed. 01638_ W-16 Scout destroyed. 01641_ G-34 Mercenary destroyed. 01651_ Acquired Prototype Ballistic Gun. 01651_ Identified Imp. Assault Rifle. 01653_ Acquired 37 matter. 01657_ Acquired Imp. Assault Rifle. 01663_ R-06 Scavenger collects Wheel. 01670_ K-01 Serf collects debris. 01672_ R-06 Scavenger collects Sml. Laser. 01676_ R-06 Scavenger collects Transport Network Coupler. 01677_ K-01 Serf collects debris. 01678_ Acquired Hvy. Hammer. 01679_ R-06 Scavenger collects Sml. Storage Unit. 01681_ K-01 Serf collects debris. 01699_ Connecting with Terminal... 01700_ K-01 Serf collects debris. 01719_ EXIT=FOUND Map ----- +----------------------------------------------------+ | ###+########+###### #??????????????????????? | | # # ## ! #??????????????????????? | | # # ##% [! #??????????????????????? | | # """ # " ## /%=#??????????????????????? | | # """ # " """ ## % ! #??????????????????????? | | + """ # """"" ## = #??????????????????????? | | # # """"" ## #??????????????????????? | | ######## """ ##% #??????????????????????? | | #??????# ## =%#??????????????????????? | | #??????############ #??????????????????????? | | #?????????#########/## #??????????????????????? | | #?????????# ] ## #??????????????????????? | | #?????????# """ """ ## ##?????????????????????? | | ?????????# """ """ # ###########???????????? | | ??????????# """ """ # T ??????????? | | ???????????# + "" ??????????? | | ???????????# # ??????????? | | ???????????# # ##########+#??????????? | | ???????????# [ ## ##?????????????????????? | | ???????????############ #??????????????????????? | | ??????????????# # #??????????????????????? | | ??????????????# + #??????????????????????? | | ??????????????# # #??????????????????????? | | ??????????????######### #??????????????????????? | | ?????????????????###### #??????????????????????? | | ?????????? @#??????????????????????? | | ?????????? Y a +??????????????????????? | | ?????????? #??????????????????????? | | ??????????? ####### #??????????????????????? | | ???????????###????????# #??????????????????????? | | ??????????????????????# #??????????????????????? | | ??????????????????????# #??????????????????????? | | ?????????????????????? #??????????????????????? | | ?????????????????????? #??????????????????????? | | ????????????????????? #??????????????????????? | | ?????????????????????## +??????????????????????? | | ??????????????????????# ???????????????????????? | | ??????????????????????# < ???????????????????????? | | ??????????????????????# ???????????????????????? | | ??????????????????????####???????????????????????? | | ?????????????????????????????????????????????????? | | ?????????????????????????????????????????????????? | | ?????????????????????????????????????????????????? | | ?????????????????????????????????????????????????? | | ?????????????????????????????????????????????????? | | | | | | | | | | | +----------------------------------------------------+ Best States ------------- Heat Dissipation 28 Energy Generation 10 Energy Capacity 250 Matter Stores 300 Matter Capacity 300 Sight Range 16 Terrain Scan Density 10 Evasion (%) 40 Targeting Accuracy 5 Recoil Reduction 3 Item Schematics ----------------- None Robot Schematics ------------------ None Fabricated ------------ Nothing Alien Tech Used ----------------- None Achievements -------------- None Challenges ------------ None Game ------ Seed MatterEtherialSource Manual? 0 Play Time 00:37:18 Cumulative 35.4 hours Start 2022.01.09 @ 19:14:18 End 2022.01.10 @ 18:02:46 Sessions 3 Manual Loads 0 Difficulty Rogue Special Mode None Game No. 47 Rogue 47 Adventurer 0 Explorer 0 Win Type - Total 0 Types 0/0/0/0/0/0/0/0/0 Lore% 18 Gallery% 25 Achievement% 18 Wizard Run 0 Options --------- ASCII 0 Keyboard 0 Movement Numpad Keybinds 0 Fullscreen 2 Font 18/SmallcapsGlow Map View 76x50 Tactical HUD 1 Map Filters NONE Filters NONE Steam 1 RUN: 4b718902-1ed4-4b38-ba41-b87027bba8bc